bitfinex-derivatives/quotes_ETHF0:USTF0_20250102
["timestamp","ask_amount","ask_price","bid_price","bid_amount"]
[1735781964009,0.29567,3388.7,3388.3,2.1354]
[1735781964213,0.29567,3388.7,3388.6,0.29568]
[1735781964412,3.2078,3388.8,3388.3,2.1354]
[1735781964716,0.29569,3388.5,3388.4,0.29569]
[1735781964907,0.8711,3388.9,3388.3,2.1354]
[1735781965103,0.8711,3388.9,3388.4,0.422]
[1735781965303,0.8711,3388.9,3388.8,0.29566]
[1735781966111,0.8711,3388.9,3388.4,0.422]
[1735781966312,1.16676,3388.9,3388.4,0.422]
[1735781966513,1.16676,3388.9,3388.8,0.29566]
[1735781966811,0.29566,3388.8,3388.7,0.29566]
[1735781967007,1.16675,3388.9,3388.8,0.29566]
[1735781967707,0.29569,3388.5,3388.4,0.71769]
[1735781968012,3.2078,3388.8,3388.5,0.29569]
[1735781968315,0.29566,3388.8,3388.7,0.29567]
[1735781968709,0.29566,3388.8,3388.3,2.5754]
[1735781968905,0.29566,3388.8,3388.6,0.29567]
[1735781969811,0.8711,3388.9,3388.3,2.5754]
[1735781970013,0.29567,3388.7,3388.6,0.29567]
[1735781970415,0.8711,3388.9,3388.3,2.5754]
[1735781970715,0.29567,3388.7,3388.6,0.29567]
[1735781971017,0.29567,3388.8,3388.6,0.29567]
[1735781971218,0.29567,3388.8,3388.3,2.5754]
[1735781971518,0.29567,3388.7,3388.6,0.29567]
[1735781976123,0.8711,3388.9,3388.3,2.5754]
[1735781976318,0.29566,3388.8,3388.7,0.29567]
[1735781977823,0.29567,3388.7,3388.6,0.29567]
[1735781978928,0.29566,3388.8,3388.7,0.29566]
[1735781979818,0.29567,3388.7,3388.6,0.29567]
[1735781980225,0.29567,3388.7,3388.3,2.5754]
[1735781980424,0.29567,3388.7,3388.6,0.29568]
[1735781981928,0.29566,3388.8,3388.7,0.29567]
[1735781985030,0.29568,3388.7,3388.6,0.29567]
[1735781987830,6.92330293,3388.8,3388.3,2.5754]
[1735781987831,6.92330293,3388.8,3388.7,0.29567]
[1735781988033,6.92330293,3388.8,3388.3,2.5754]
[1735781988332,0.29567,3388.7,3388.6,0.29567]
[1735781989031,6.92330293,3388.8,3388.3,2.5754]
[1735781989232,7.21897293,3388.8,3388.7,0.29567]
[1735781989536,6.92330293,3388.8,3388.3,1.229]
[1735781989735,7.21897293,3388.7,3388.6,0.29567]
[1735781990431,6.92330293,3388.7,3388.6,0.29567]
[1735781992336,6.92330293,3388.7,3388.4,0.8936]
[1735781992337,9.18371881,3388.9,3388.8,0.29566]
[1735781994540,9.18371881,3388.9,3388.7,0.29567]
[1735781994541,0.29567,3388.8,3388.7,0.29567]
[1735781994936,0.8711,3388.9,3388.4,0.8936]
[1735781995138,1.16676,3388.9,3388.8,0.29566]
[1735781995340,0.29567,3388.8,3388.7,0.29566]
[1735781995648,1.16676,3388.9,3388.8,0.29566]
[1735781996439,0.29566,3388.8,3388.7,0.29567]
[1735781997544,0.8711,3388.9,3388.4,0.8936]
[1735781997545,1.16675,3388.9,3388.8,0.29566]
[1735781997844,1.16675,3388.9,3388.7,0.29566]
[1735781998444,1.16675,3388.9,3388.4,0.8936]
[1735781998745,0.8711,3388.9,3388.7,0.29566]
[1735781998934,0.29566,3388.8,3388.7,0.29566]
[1735781999139,1.16676,3388.9,3388.7,0.29566]
[1735781999339,0.8711,3388.9,3388.7,0.29566]
[1735781999656,0.29566,3388.8,3388.7,0.29566]
[1735782000747,0.8711,3388.9,3388.4,1.94137346]
[1735782000937,0.29567,3388.7,3388.5,0.29568]
[1735782001343,1.04777346,3388.8,3388.4,1.18929]
[1735782001540,0.29569,3388.6,3388.4,1.18929]
[1735782001736,0.29569,3388.5,3388.3,1.229]
[1735782001942,0.29569,3388.5,3388.2,3.50351]
[1735782002238,0.2957,3388.4,3388.3,0.2957]
[1735782002437,0.29569,3388.5,3388.3,0.2957]
[1735782002638,0.8711,3388.9,3388.3,1.04777346]
[1735782002839,6.9279286,3389.1,3388.8,1.04777346]
[1735782003043,6.9279286,3389.1,3388.9,0.74855]
[1735782003044,0.29564,3389.0,3388.9,0.74855]
[1735782003246,0.29564,3389.0,3388.9,1.20565]
[1735782004351,6.9279286,3389.2,3389.1,0.29563]
[1735782005443,0.29561,3389.4,3389.2,0.29562]
[1735782005640,10.1357286,3389.6,3389.5,0.2956]
[1735782005947,10.1357286,3389.6,3389.5,1.5246]
[1735782006249,6.9279286,3389.6,3389.5,1.5246]
[1735782006439,5.45762154,3389.6,3389.5,1.5246]
[1735782006645,5.45762154,3389.6,3389.5,2.3763]
[1735782006846,3.6408,3390.2,3389.5,2.3763]
[1735782006847,0.29556,3390.0,3389.8,0.29557]
[1735782007248,0.29556,3389.9,3389.8,0.29557]
[1735782007849,0.29556,3390.0,3389.8,0.29557]
[1735782008550,3.6408,3390.2,3389.8,0.29557]
[1735782008848,0.29556,3389.9,3389.8,0.29557]
[1735782009353,3.6408,3390.2,3389.6,0.4631]
[1735782009647,0.29557,3389.9,3389.7,0.29558]
[1735782010047,0.29557,3389.9,3389.6,0.4631]
[1735782010239,0.29556,3390.0,3389.8,0.29557]
[1735782011647,11.95329881,3390.2,3390.0,0.29555]
[1735782011856,8.01695881,3390.2,3390.1,0.29555]
[1735782012752,0.4529,3390.3,3390.2,0.29554]
[1735782013752,0.4529,3390.3,3390.2,1.52454]
[1735782014242,0.4529,3390.3,3390.2,1.229]
[1735782014444,0.74843,3390.3,3390.2,1.229]
[1735782015745,3.13117698,3390.3,3390.2,1.229]
[1735782015946,0.29558,3389.8,3389.7,1.229]
[1735782016154,0.29557,3389.9,3389.7,1.52458]
[1735782016653,3.2078,3390.2,3389.7,1.52458]
[1735782016853,0.29557,3389.8,3389.7,1.52458]
[1735782017249,3.2078,3390.2,3389.7,1.229]
[1735782017449,0.29556,3390.0,3389.8,0.29557]
[1735782017751,6.05545037,3390.0,3389.8,0.29557]
[1735782018451,6.05545037,3390.0,3389.9,0.29556]
[1735782018760,6.05545037,3390.0,3389.7,1.229]
[1735782018761,3.2078,3390.2,3389.7,1.229]
[1735782019054,3.2078,3390.2,3390.1,0.29555]
[1735782020055,0.29556,3389.9,3389.8,0.29557]
[1735782020853,0.29557,3389.8,3389.7,1.52458]
[1735782021058,0.4544,3389.8,3389.7,1.52458]
[1735782024754,0.4544,3389.8,3389.5,0.8517]
[1735782024958,0.4544,3389.8,3389.0,3.2078]
[1735782024959,0.4426,3389.7,3389.0,3.2078]
[1735782025164,0.4426,3389.7,3389.3,0.29562]
[1735782025455,0.4426,3389.7,3389.6,0.29559]
[1735782026954,0.73818,3389.7,3389.6,0.29559]
[1735782027159,0.73818,3389.7,3389.6,1.52459]
[1735782027352,0.4426,3389.7,3389.6,1.52459]
[1735782027553,0.4426,3389.7,3389.6,1.229]
[1735782027754,0.4426,3389.7,3389.6,1.52459]
[1735782028154,0.4544,3389.8,3389.6,1.229]
[1735782028356,0.4544,3389.8,3389.7,0.29558]
[1735782029457,0.4623,3390.1,3389.6,1.229]
[1735782029657,0.4623,3390.1,3390.0,0.29556]
[1735782030458,0.29556,3390.0,3389.7,1.3261]
[1735782030660,0.4623,3390.1,3389.7,1.3261]
[1735782030859,0.75785,3390.1,3389.8,0.29557]
[1735782031060,0.75785,3390.1,3390.0,0.29556]
[1735782031255,0.75785,3390.1,3389.9,0.29556]
[1735782031863,0.75785,3390.1,3390.0,0.29556]
[1735782032160,0.4623,3390.1,3390.0,0.29556]
[1735782033660,0.75785,3390.1,3390.0,0.29556]
[1735782033862,0.4623,3390.1,3390.0,0.29556]
[1735782034763,0.29554,3390.2,3390.1,0.29555]
[1735782035256,0.29554,3390.2,3390.0,0.29555]
[1735782035655,0.29554,3390.2,3390.1,0.29555]
[1735782038258,0.29554,3390.2,3390.1,0.29554]
[1735782038664,3.2078,3390.2,3389.7,1.3261]
[1735782039065,0.29555,3390.1,3389.9,0.29556]
[1735782039271,0.29555,3390.1,3390.0,0.29556]
[1735782039564,0.29555,3390.1,3389.8,0.29556]
[1735782039565,0.29557,3389.9,3389.8,0.29556]
[1735782039963,0.29558,3389.8,3389.7,0.29558]
[1735782040272,1.34285068,3389.8,3389.7,0.29558]
[1735782040661,1.04728068,3389.8,3389.7,0.29558]
[1735782040863,1.34284068,3390.0,3389.9,0.29556]
[1735782041065,1.04728068,3390.0,3389.9,0.29556]
[1735782041360,0.29556,3390.0,3389.9,0.29556]
[1735782043166,3.2078,3390.2,3390.0,0.29555]
[1735782043167,8.31250881,3390.1,3390.0,0.29555]
[1735782043767,0.29556,3390.0,3389.9,0.29556]
[1735782044267,8.31250881,3390.1,3390.0,0.29556]
[1735782044971,0.29555,3390.1,3390.0,0.29556]
[1735782045275,0.29555,3390.1,3389.7,2.567]
[1735782045276,11.52030881,3390.2,3390.1,0.29555]
[1735782047167,11.52030881,3390.2,3389.7,2.567]
[1735782047168,3.2078,3390.2,3389.7,2.567]
[1735782047370,0.29555,3390.1,3390.0,0.29555]
[1735782049169,0.29559,3389.6,3389.5,0.29559]
[1735782049675,2.38216361,3390.1,3389.4,3.2078]
[1735782049870,3.50334,3390.2,3390.1,0.29555]
[1735782051778,10.43506681,3390.2,3390.1,0.29555]
[1735782053383,0.29556,3390.0,3389.9,0.29556]
[1735782053582,10.13952681,3390.2,3389.5,1.2916]
[1735782053878,0.29555,3390.1,3390.0,0.29555]
[1735782054577,10.13952681,3390.2,3389.5,1.2916]
[1735782054880,0.29557,3389.9,3389.8,0.29557]
[1735782055178,2.67771361,3390.1,3389.7,0.29558]
[1735782055482,0.29559,3389.7,3389.6,0.29559]
[1735782056278,10.87839681,3390.2,3389.5,0.8461]
[1735782056279,10.13952681,3390.2,3389.5,0.8461]
[1735782056483,10.13952681,3390.2,3390.1,0.29555]
[1735782056686,3.2078,3390.2,3390.1,0.29555]
[1735782057778,3.2078,3390.2,3390.1,0.73335]
[1735782060284,0.4397,3390.4,3390.3,0.29553]
[1735782061687,0.73522,3390.4,3390.3,0.29553]
[1735782061888,9.89745864,3390.4,3390.3,0.29553]
[1735782062081,9.60193864,3390.4,3390.3,0.29553]
[1735782062287,9.16223864,3390.4,3390.3,0.29553]
[1735782062987,0.4269,3390.6,3390.5,0.29551]
[1735782062988,9.58913864,3390.6,3390.5,0.29551]
[1735782063787,9.16223864,3390.6,3390.5,0.29551]
[1735782063989,12.80093864,3390.7,3390.1,1.17667]
[1735782064191,14.14310628,3390.7,3390.6,0.2955]
[1735782064381,14.14310628,3390.7,3390.2,1.04666764]
[1735782064382,13.84760628,3390.7,3390.2,1.04666764]
[1735782064588,0.29551,3390.6,3390.5,0.29551]
[1735782064786,8.10656882,3390.3,3390.2,1.34220764]
[1735782065290,8.10656882,3390.3,3390.2,4.55000764]
[1735782065587,8.10656882,3390.4,3390.2,4.25446764]
[1735782065891,8.10656882,3390.4,3390.3,0.29553]
[1735782066193,8.10656882,3390.4,3390.3,2.67598774]
[1735782066694,0.29546,3391.1,3390.5,0.29551]
[1735782066695,6.94462904,3390.6,3390.5,0.29551]
[1735782066989,6.94462904,3390.6,3390.5,1.52351]
[1735782068693,6.94462904,3390.8,3390.7,0.29549]
[1735782069393,6.94462904,3390.8,3390.7,0.72669]
[1735782070091,8.10656882,3391.1,3391.0,0.29547]
[1735782070092,5.7830981,3391.1,3391.0,0.29547]
[1735782070290,5.7830981,3391.1,3391.0,3.50327]
[1735782071487,5.7830981,3391.6,3391.5,0.29542]
[1735782072194,5.7830981,3391.6,3391.5,0.72202]
[1735782072390,0.29541,3391.7,3391.5,0.72202]
[1735782072694,0.29542,3391.6,3391.4,1.52243]
[1735782072893,0.29542,3391.6,3391.5,0.29542]
[1735782073190,5.7830981,3391.8,3391.4,1.227]
[1735782073390,5.7830981,3391.8,3391.2,0.29545]
[1735782073598,0.29544,3391.4,3391.3,1.227]
[1735782074090,3.2078,3391.4,3390.8,1.227]
[1735782074291,1.3623,3391.3,3390.9,0.29547]
[1735782074497,0.29546,3391.1,3390.9,0.29547]
[1735782074997,1.3623,3391.3,3390.9,0.29547]
[1735782075294,0.29547,3391.0,3390.9,0.29547]
[1735782075498,6.0785581,3391.1,3390.8,1.227]
[1735782075693,5.7830981,3391.1,3391.0,0.29547]
[1735782076694,5.7830981,3391.1,3390.8,1.227]
[1735782076695,0.4291,3391.7,3390.9,0.4423]
[1735782076899,0.8811,3391.7,3391.6,0.29542]
[1735782078102,0.8811,3391.7,3391.5,1.227]
[1735782078297,1.17651,3391.7,3391.5,1.52242]
[1735782078494,0.8811,3391.7,3391.5,1.227]
[1735782078697,0.29542,3391.6,3391.5,1.227]
[1735782078896,7.24004904,3391.6,3391.5,1.227]
[1735782080695,7.68317904,3391.6,3390.6,5.58825774]
[1735782080903,0.29547,3391.0,3390.7,1.227]
[1735782081105,0.29549,3390.8,3390.7,0.29549]
[1735782081307,1.61928,3390.9,3390.6,4.4348]
[1735782081506,1.61928,3390.9,3390.7,0.29549]
[1735782082001,0.8934,3390.9,3390.8,0.29549]
[1735782083108,0.4428,3390.9,3390.8,0.29549]
[1735782083299,0.4662,3391.2,3391.1,0.29546]
[1735782083700,6.94462904,3391.6,3391.0,3.2078]
[1735782083900,6.94462904,3391.6,3391.5,0.29542]
[1735782084504,0.9037,3391.8,3391.4,1.227]
[1735782084505,6.67523713,3391.8,3391.4,1.227]
[1735782084808,6.67523713,3391.8,3391.7,0.29541]
[1735782085398,5.77153713,3391.8,3391.7,0.29541]
[1735782087005,5.77153713,3392.2,3391.5,2.38045774]
[1735782087207,0.29541,3391.8,3391.5,0.29542]
[1735782087407,0.8913,3391.7,3391.5,0.29542]
[1735782087805,1.18671,3391.7,3391.5,0.29542]
[1735782088010,1.62091,3391.7,3391.4,1.227]
[1735782088205,1.3255,3391.7,3391.4,1.227]
[1735782088410,1.3255,3391.7,3391.5,0.29542]
[1735782088711,1.62091,3391.7,3391.5,0.29542]
[1735782090207,1.3255,3391.7,3391.4,1.227]
[1735782090408,1.62091,3391.7,3391.4,1.52243]
[1735782090610,0.29542,3391.6,3391.4,1.52243]
[1735782090911,0.29542,3391.5,3391.4,1.227]
[1735782091702,0.29542,3391.6,3391.4,1.52243]
[1735782092110,0.29542,3391.6,3391.4,0.29543]
[1735782092311,0.29544,3391.4,3391.2,1.52245]
[1735782092913,8.27012904,3391.7,3391.3,0.29544]
[1735782092914,0.29543,3391.5,3391.3,0.29544]
[1735782093409,8.27012904,3391.7,3391.1,1.227]
[1735782093616,0.29542,3391.6,3391.4,0.29543]
[1735782093807,0.29542,3391.6,3391.1,1.227]
[1735782093808,8.27012904,3391.7,3391.1,1.227]
[1735782094015,6.94462904,3391.7,3391.6,0.29542]
[1735782094522,6.94462904,3391.7,3391.6,1.66622]
[1735782094723,0.8876,3392.2,3392.0,0.29538]
[1735782094724,6.94462904,3392.1,3392.0,0.29538]
[1735782095525,6.94462904,3392.1,3391.9,1.227]
[1735782095722,0.29538,3392.0,3391.9,1.227]
[1735782096219,2.38045774,3392.0,3391.1,3.2078]
[1735782096424,3.2078,3391.8,3391.4,0.29543]
[1735782096621,0.29542,3391.6,3391.4,0.29543]
[1735782096821,0.4496,3391.5,3391.4,0.29543]
[1735782098326,0.4417,3391.7,3391.6,0.29542]
[1735782098921,0.73712,3391.7,3391.5,0.29542]
[1735782099129,0.4417,3391.7,3391.5,0.29542]
[1735782099329,0.29542,3391.6,3391.5,0.29542]
[1735782099629,0.29542,3391.6,3391.3,0.29544]
[1735782099823,0.29542,3391.6,3391.4,0.29543]
[1735782100019,0.4417,3391.7,3391.2,0.4608]
[1735782100330,6.94462904,3392.3,3392.2,0.29536]
[1735782101728,0.8679,3392.5,3392.3,0.29535]
[1735782101926,1.16324,3392.5,3392.4,0.29535]
[1735782102226,0.8679,3392.5,3392.4,0.29535]
[1735782102427,0.8679,3392.5,3392.2,0.29536]
[1735782102627,0.29536,3392.3,3392.2,0.29536]
[1735782102825,3.2078,3392.3,3391.9,0.4519]
[1735782103028,0.29538,3392.0,3391.9,0.74728]
[1735782103428,0.29536,3392.3,3392.2,0.29536]
[1735782103630,0.8679,3392.5,3391.9,0.4519]
[1735782103825,0.8679,3392.5,3391.9,0.74728]
[1735782104032,0.29538,3392.0,3391.9,1.226]
[1735782104720,0.29538,3392.0,3391.4,0.4428]
[1735782104721,0.4497,3392.0,3391.4,0.4428]
[1735782105028,3.6493,3391.9,3391.3,1.226]
[1735782105236,0.29543,3391.5,3391.4,0.29543]
[1735782105731,0.29543,3391.5,3391.3,1.226]
[1735782105921,0.29543,3391.5,3391.4,0.29543]
[1735782106123,5.77856875,3391.5,3391.4,0.29543]
[1735782106328,5.77856875,3391.5,3391.4,0.74883]
[1735782107033,3.94469,3391.9,3391.7,0.2954]
[1735782107629,3.94469,3391.9,3391.4,0.4534]
[1735782107630,3.6493,3391.9,3391.4,0.4534]
[1735782107825,0.29542,3391.6,3391.5,0.29542]
[1735782108733,0.2954,3391.8,3391.4,0.74883]
[1735782108933,11.75586882,3391.9,3391.4,0.74883]
[1735782108934,0.29542,3391.5,3391.4,0.74883]
[1735782109336,11.75586882,3391.9,3391.4,0.4534]
[1735782109535,0.29542,3391.6,3391.5,0.29542]
[1735782110537,11.75586882,3391.9,3391.4,0.4534]
[1735782110835,0.29542,3391.5,3391.4,0.4534]
[1735782111137,0.29542,3391.5,3391.3,1.52144]
[1735782111138,11.75586882,3391.9,3391.3,1.226]
[1735782111340,0.29542,3391.6,3391.3,1.226]
[1735782111538,0.29543,3391.5,3391.4,0.29543]
[1735782112640,0.29544,3391.3,3391.2,0.74574]
[1735782112840,0.7385,3391.8,3390.9,0.29548]
[1735782112841,0.29547,3391.0,3390.9,0.29548]
[1735782113135,0.4616,3391.2,3390.8,1.226]
[1735782113340,0.29548,3390.9,3390.8,1.226]
[1735782113939,0.29548,3390.9,3390.8,1.52149]
[1735782114237,0.29548,3390.9,3390.8,1.226]
[1735782115237,0.29548,3390.9,3390.5,0.4342]
[1735782115238,0.2955,3390.6,3390.5,0.72971]
[1735782115436,3.2078,3390.9,3390.5,0.72971]
[1735782115633,0.4617,3390.8,3390.5,0.4342]
[1735782115838,0.4617,3390.8,3390.4,0.4257]
[1735782116039,5.7851511,3390.6,3390.5,0.29551]
[1735782117237,0.4225,3390.6,3390.5,0.29551]
[1735782117441,0.4225,3390.6,3390.1,0.4439]
[1735782117635,0.29554,3390.3,3390.2,1.226]
[1735782117947,0.8511,3390.6,3390.2,1.226]
[1735782117948,0.29552,3390.5,3390.2,1.226]
[1735782118239,0.8511,3390.6,3390.2,1.226]
[1735782118440,0.29553,3390.3,3390.2,1.52154]
[1735782118641,5.78254825,3390.3,3390.2,1.52154]
[1735782120445,0.4225,3390.6,3390.3,0.29553]
[1735782120446,6.50055825,3390.6,3390.3,0.29553]
[1735782120645,0.29552,3390.4,3390.3,0.29553]
[1735782120837,0.29552,3390.5,3390.4,0.29552]
[1735782121144,6.50055825,3390.6,3390.5,0.29551]
[1735782121350,0.71801,3390.6,3390.5,0.29551]
[1735782121645,0.29552,3390.4,3390.3,0.29553]
[1735782122441,0.29552,3390.5,3390.3,0.29553]
[1735782122649,0.29553,3390.4,3390.2,0.29553]
[1735782122841,0.29554,3390.3,3390.1,0.73944]
[1735782123146,0.75834,3390.3,3390.1,0.73944]
[1735782123344,0.75834,3390.3,3390.1,0.4439]
[1735782123547,0.75834,3390.3,3390.2,0.29554]
[1735782124139,0.4628,3390.3,3390.2,0.29554]
[1735782124339,6.20504825,3390.6,3390.5,0.29551]
[1735782124545,0.718,3390.6,3390.5,0.29551]
[1735782125244,0.4225,3390.6,3390.5,0.29551]
[1735782125641,5.78254825,3390.8,3390.1,0.4439]
[1735782125847,5.78254825,3390.8,3390.7,0.29549]
[1735782126046,8.99034825,3390.9,3390.8,0.29549]
[1735782126242,9.28582825,3390.9,3390.8,0.29549]
[1735782126641,8.99034825,3390.9,3390.8,0.29549]
[1735782126944,3.2078,3390.9,3390.8,0.29549]
[1735782127644,3.2078,3390.9,3390.8,1.19859]
[1735782129449,0.8757,3391.0,3390.9,0.29548]
[1735782129650,0.29546,3391.1,3390.8,0.9031]
[1735782129951,5.78254825,3391.2,3391.1,0.29546]
[1735782130450,0.29545,3391.3,3391.1,0.29546]
[1735782131051,11.37080599,3391.4,3390.8,0.9031]
[1735782131246,0.29547,3391.0,3390.9,0.29548]
[1735782131552,11.37080599,3391.4,3390.7,1.52149]
[1735782131553,0.29549,3390.8,3390.7,1.52149]
[1735782131751,0.29549,3390.8,3390.6,0.8905]
[1735782131752,0.29549,3390.7,3390.6,1.186]
[1735782131948,0.29549,3390.8,3390.7,0.29549]
[1735782132150,0.4542,3390.8,3390.7,0.29549]
[1735782133149,0.74969,3390.8,3390.7,0.29549]
[1735782135052,0.4542,3390.8,3390.7,0.29549]
[1735782135352,5.78254825,3391.1,3391.0,0.29547]
[1735782135659,0.29546,3391.1,3391.0,0.29547]
[1735782136056,0.8955,3391.2,3390.5,0.73878]
[1735782136249,0.29546,3391.1,3391.0,0.29546]
[1735782136449,1.19096,3391.2,3391.1,0.29546]
[1735782136649,0.29546,3391.1,3390.6,0.2955]
[1735782136850,0.29546,3391.1,3390.5,0.73878]
[1735782137051,0.8955,3391.2,3390.9,0.29547]
[1735782137255,0.29547,3391.1,3390.9,0.29547]
[1735782137452,0.29547,3391.1,3390.4,1.226]
[1735782137453,0.8955,3391.2,3390.3,3.2078]
[1735782137651,0.8955,3391.2,3390.5,0.29551]
[1735782137652,0.2955,3390.6,3390.5,0.29551]
[1735782137955,3.2078,3391.0,3390.3,3.2078]
[1735782137956,0.29552,3390.4,3390.3,3.50333]
[1735782138147,0.29552,3390.4,3390.3,0.29553]
[1735782139052,0.72362,3390.5,3390.4,0.29552]
[1735782139555,0.29553,3390.4,3390.3,0.29552]
[1735782141158,0.72362,3390.5,3390.4,0.29552]
[1735782141554,0.72362,3390.5,3390.2,0.29553]
[1735782141555,0.29552,3390.4,3390.2,0.29553]
[1735782141750,0.29553,3390.4,3389.9,2.1287]
[1735782141957,0.29553,3390.4,3390.3,0.29553]
[1735782142759,0.29555,3390.1,3390.0,0.29556]
[1735782144462,0.4281,3390.5,3390.0,0.29556]
[1735782144662,0.4281,3390.5,3390.1,0.29555]
[1735782144663,0.29554,3390.2,3390.1,0.29555]
[1735782145360,0.73881,3390.4,3389.3,7.382]
[1735782145556,0.29558,3389.7,3389.6,0.29559]
[1735782146157,0.29559,3389.6,3389.5,0.8623]
[1735782146358,1.19969,3389.6,3389.2,0.4497]
[1735782146558,0.9041,3389.6,3389.5,0.2956]
[1735782147865,5.78254825,3390.1,3390.0,0.29556]
[1735782148170,5.78254825,3390.3,3389.9,1.226]
[1735782148467,6.07807825,3390.3,3390.0,0.8718]
[1735782148662,5.78254825,3390.3,3390.0,0.8718]
[1735782148867,5.78254825,3390.3,3390.2,0.29554]
[1735782149461,0.29552,3390.4,3390.0,0.8718]
[1735782149759,0.29552,3390.4,3390.3,0.29553]
[1735782151762,0.29552,3390.4,3390.2,0.29553]
[1735782151964,6.07806825,3390.4,3390.2,0.29553]
[1735782152160,6.07806825,3390.4,3390.3,0.29553]
[1735782152355,5.78254825,3390.4,3390.3,0.29553]
[1735782153068,8.16300599,3390.5,3389.9,3.2078]
[1735782153268,0.29555,3390.2,3390.0,1.226]
[1735782153464,8.16300599,3390.5,3390.0,1.226]
[1735782153664,0.29553,3390.3,3390.1,0.29555]
[1735782153966,5.78254825,3390.2,3390.1,0.29555]
[1735782155666,0.29555,3390.1,3390.0,1.226]
[1735782156368,0.29555,3390.1,3390.0,1.52156]
[1735782156961,0.29555,3390.1,3390.0,0.29556]
[1735782157462,0.29556,3389.9,3389.8,0.4289]
[1735782158064,1.17466,3390.0,3389.8,0.72447]
[1735782158265,0.8791,3390.0,3389.8,0.72447]
[1735782158459,0.29556,3389.9,3389.8,0.4289]
[1735782158668,6.09700465,3389.9,3389.8,0.4289]
[1735782158871,6.09700465,3389.9,3389.8,0.72447]
[1735782158872,5.80144465,3389.9,3389.8,0.72447]
[1735782159370,6.09700465,3389.9,3389.8,0.72447]
[1735782159566,0.29556,3389.9,3389.8,0.4289]
[1735782160274,0.29556,3389.9,3389.8,0.72447]
[1735782164471,0.29556,3389.9,3389.8,0.4289]
[1735782164672,0.29556,3389.9,3389.8,0.72447]
[1735782166370,1.17466,3390.0,3389.8,0.4289]
[1735782166574,0.4344,3390.0,3389.9,0.29556]
[1735782166768,5.80144465,3390.1,3390.0,0.29556]
[1735782166974,2.42654465,3390.1,3390.0,3.13465396]
[1735782167270,1.36384465,3390.1,3390.0,8.13465396]
[1735782167462,1.36384465,3390.1,3390.0,8.26688838]
[1735782167666,1.36384465,3390.1,3390.0,49.06688838]
[1735782167873,7.23952323,3391.0,3390.9,0.29548]
[1735782168273,6.94405323,3391.0,3390.7,1.225]
[1735782168468,7.23952323,3391.0,3390.9,0.29548]
[1735782168668,6.94405323,3391.0,3390.8,0.29548]
[1735782168869,0.29547,3391.0,3390.9,0.29548]
[1735782170470,1.2874,3391.1,3390.9,0.29548]
[1735782170671,1.58286,3391.1,3390.9,0.29548]
[1735782170872,1.2874,3391.1,3390.9,0.29548]
[1735782171077,0.29547,3391.0,3390.9,0.29548]
[1735782171370,1.2874,3391.1,3390.9,0.29548]
[1735782171572,1.2874,3391.1,3390.7,1.225]
[1735782171573,1.58287,3391.1,3390.7,1.225]
[1735782171875,1.2874,3391.1,3391.0,0.29547]
[1735782172076,1.58286,3391.1,3390.9,0.29547]
[1735782172769,1.58286,3391.1,3391.0,0.29547]
[1735782172974,0.29547,3391.0,3390.9,0.29547]
[1735782173775,1.2874,3391.1,3390.9,0.29547]
[1735782173971,1.58286,3391.1,3390.9,0.29547]
[1735782174171,1.58286,3391.1,3390.8,0.29549]
[1735782174371,1.58286,3391.1,3391.0,0.29547]
[1735782174773,0.29547,3391.0,3390.9,0.29547]
[1735782175475,0.29548,3390.9,3390.8,1.52048]
[1735782175777,0.29547,3391.0,3390.8,1.52048]
[1735782177272,0.29547,3391.0,3390.9,0.29548]
[1735782177878,0.29548,3390.9,3390.8,1.52048]
[1735782178078,0.29547,3391.0,3390.8,1.52048]
[1735782178472,0.29547,3391.0,3390.8,1.225]
[1735782178682,0.29547,3391.0,3390.9,0.29548]
[1735782179672,1.2874,3391.1,3390.8,1.225]
[1735782179877,1.2874,3391.1,3391.0,0.29547]
[1735782184286,1.58286,3391.1,3391.0,0.29547]
[1735782184584,1.58286,3391.1,3390.8,1.225]
[1735782184781,8.54066393,3391.1,3390.9,0.29547]
[1735782185176,8.54066393,3391.1,3391.0,0.29547]
[1735782188383,8.24520393,3391.1,3391.0,0.29547]
[1735782188688,6.95780393,3391.1,3391.0,0.29547]
[1735782189176,0.9147,3391.4,3391.3,0.29544]
[1735782190482,0.9147,3391.4,3390.8,4.4328]
[1735782190676,0.29546,3391.2,3391.1,0.29545]
[1735782190880,0.29548,3391.0,3390.9,0.29547]
[1735782194291,0.72366,3391.1,3391.0,0.29547]
[1735782194482,0.29547,3391.0,3390.9,0.29547]
[1735782194879,2.80865774,3391.1,3390.3,3.2078]
[1735782195084,0.29551,3390.6,3390.5,0.29551]
[1735782196391,0.29554,3390.2,3389.9,3.2078]
[1735782196689,0.8506,3390.1,3390.0,0.29556]
[1735782199388,1.14615,3390.1,3390.0,0.29556]
[1735782200184,0.8506,3390.1,3390.0,0.29556]
[1735782200388,0.75922,3390.5,3390.4,0.29552]
[1735782200690,0.29553,3390.3,3390.2,0.29553]
[1735782202685,0.8881,3390.4,3390.3,0.29553]
[1735782204193,1.18362,3390.4,3390.3,0.29553]
[1735782204593,0.8881,3390.4,3390.3,0.29553]
[1735782205289,0.4401,3390.4,3390.3,0.29553]
[1735782206290,6.95780393,3390.9,3390.3,5.58825774]
[1735782206595,6.95780393,3391.0,3390.9,0.29548]
[1735782207388,9.75412882,3391.2,3390.8,1.224]
[1735782207389,1.64756,3391.2,3391.1,0.29546]
[1735782207589,1.64756,3391.2,3390.8,1.224]
[1735782207590,0.29547,3391.0,3390.9,0.29547]